[Event "Titled Tuesday Blitz February 21 Early 2023"]
[White "Hirneise, Jens"]
[Black "Kotepalli, Sai Nirupama"]
[WhiteFideId "24614734"]
[BlackFideId "5039444"]
[WhiteElo "2277"]
[BlackElo "1910"]
[Result "1-0"]
[Round "03"]
[TimeControl "180+2"]
[Date "2023.02.21"]
[WhiteClock "0:00:14"]
[BlackClock "0:00:04"]

1. d4 {[%clk 0:02:55]}  d5 {[%clk 0:02:56]} 2. c4 {[%clk 0:02:53]}  c6 {[%clk 0:02:54]} 3. cxd5 {[%clk 0:02:50]}  cxd5 {[%clk 0:02:55]} 4. Bf4 {[%clk 0:02:50]}  Nc6 {[%clk 0:02:55]} 5. e3 {[%clk 0:02:49]}  Qb6 {[%clk 0:02:53]} 6. Nc3 {[%clk 0:02:40]}  Qxb2 {[%clk 0:02:30]} 7. Nxd5 {[%clk 0:02:24]}  e6 {[%clk 0:02:25]} 8. Nc7+ {[%clk 0:02:15]}  Kd8 {[%clk 0:02:22]} 9. Be2 {[%clk 0:02:03]}  Bb4+ {[%clk 0:02:09]} 10. Kf1 {[%clk 0:02:02]}  e5 {[%clk 0:02:05]} 11. dxe5+ {[%clk 0:01:43]}  Kxc7 {[%clk 0:02:04]} 12. e6+ {[%clk 0:01:41]}  Kb6 {[%clk 0:02:03]} 13. exf7 {[%clk 0:01:33]}  Nf6 {[%clk 0:02:02]} 14. a3 {[%clk 0:01:29]}  Rd8 {[%clk 0:01:56]} 15. Qb1 {[%clk 0:01:13]}  Qxb1+ {[%clk 0:01:31]} 16. Rxb1 {[%clk 0:01:14]}  Bf5 {[%clk 0:01:21]} 17. Rb2 {[%clk 0:01:05]}  Rd2 {[%clk 0:01:19]} 18. Rxd2 {[%clk 0:01:01]}  Bxd2 {[%clk 0:01:18]} 19. Nf3 {[%clk 0:01:02]}  Bc1 {[%clk 0:01:12]} 20. h3 {[%clk 0:00:54]}  Bxa3 {[%clk 0:01:09]} 21. g4 {[%clk 0:00:54]}  Be4 {[%clk 0:01:08]} 22. Kg2 {[%clk 0:00:53]}  Nd5 {[%clk 0:01:06]} 23. Kg3 {[%clk 0:00:51]}  Rf8 {[%clk 0:00:55]} 24. Ra1 {[%clk 0:00:47]}  Bc5 {[%clk 0:00:49]} 25. Ng5 {[%clk 0:00:46]}  Bg6 {[%clk 0:00:43]} 26. Bc4 {[%clk 0:00:38]}  Nxf4 {[%clk 0:00:40]} 27. exf4 {[%clk 0:00:39]}  Bd4 {[%clk 0:00:31]} 28. Ra3 {[%clk 0:00:36]}  Bc5 {[%clk 0:00:23]} 29. Rb3+ {[%clk 0:00:34]}  Bb4 {[%clk 0:00:23]} 30. f5 {[%clk 0:00:31]}  h6 {[%clk 0:00:19]} 31. Ne6 {[%clk 0:00:29]}  Rxf7 {[%clk 0:00:15]} 32. fxg6 {[%clk 0:00:28]}  Rf6 {[%clk 0:00:15]} 33. f4 {[%clk 0:00:27]}  a5 {[%clk 0:00:15]} 34. f5 {[%clk 0:00:23]}  a4 {[%clk 0:00:15]} 35. Rb1 {[%clk 0:00:24]}  a3 {[%clk 0:00:14]} 36. Nxg7 {[%clk 0:00:23]}  Kc5 {[%clk 0:00:13]} 37. Ne8 {[%clk 0:00:22]}  Rf8 {[%clk 0:00:11]} 38. Bf7 {[%clk 0:00:23]}  a2 {[%clk 0:00:06]} 39. Ra1 {[%clk 0:00:21]}  Ne5 {[%clk 0:00:05]} 40. Rxa2 {[%clk 0:00:19]}  Nxf7 {[%clk 0:00:05]} 41. gxf7 {[%clk 0:00:16]}  Rxf7 {[%clk 0:00:05]} 42. Rc2+ {[%clk 0:00:14]}  Kb5 {[%clk 0:00:05]} 43. Nc7+ {[%clk 0:00:14]}  Ka4 {[%clk 0:00:04]} 44. Ne6 {[%clk 0:00:13]}  Kb3 {[%clk 0:00:04]} 45. Re2 {[%clk 0:00:11]}  b5 {[%clk 0:00:04]} 46. h4 {[%clk 0:00:10]}  Bd6+ {[%clk 0:00:02]} 47. Kf3 {[%clk 0:00:07]}  Kc3 {[%clk 0:00:03]} 48. Ke4 {[%clk 0:00:08]}  b4 {[%clk 0:00:03]} 49. Kd5 {[%clk 0:00:09]}  Bg3 {[%clk 0:00:02]} 50. Re3+ {[%clk 0:00:08]}  Kc2 {[%clk 0:00:01]} 51. Rxg3 {[%clk 0:00:09]}  b3 {[%clk 0:00:02]} 52. Ke5 {[%clk 0:00:09]}  b2 {[%clk 0:00:02]} 53. Rg2+ {[%clk 0:00:10]}  Kc1 {[%clk 0:00:02]} 54. Rxb2 {[%clk 0:00:11]}  Kxb2 {[%clk 0:00:02]} 55. g5 {[%clk 0:00:12]}  hxg5 {[%clk 0:00:03]} 56. hxg5 {[%clk 0:00:13]}  Kc3 {[%clk 0:00:03]} 57. g6 {[%clk 0:00:14]}  Re7 {[%clk 0:00:03]} 58. g7 {[%clk 0:00:14]}  Rxg7 {[%clk 0:00:03]} 59. Nxg7 {[%clk 0:00:14]}  Kc4 {[%clk 0:00:04]} 60. f6 {[%clk 0:00:14]} 1-0


[Site "https://www.chess.com"]

[Event "Titled Tuesday Blitz February 21 Early 2023"]
[White "Fries-Nielsen, Jens Ove"]
[Black "Alhadad, Mahmoud"]
[WhiteFideId "1400142"]
[BlackFideId "11501863"]
[WhiteElo "2377"]
[BlackElo "1840"]
[Result "0-1"]
[Round "03"]
[TimeControl "180+2"]
[Date "2023.02.21"]
[WhiteClock "0:01:20"]
[BlackClock "0:00:09"]

1. e4 {[%clk 0:03:00]}  d5 {[%clk 0:03:00]} 2. exd5 {[%clk 0:02:58]}  Nf6 {[%clk 0:03:01]} 3. Nc3 {[%clk 0:02:04]}  Nxd5 {[%clk 0:02:57]} 4. Bc4 {[%clk 0:02:03]}  Nb6 {[%clk 0:02:56]} 5. Bb3 {[%clk 0:02:03]}  c5 {[%clk 0:02:57]} 6. d3 {[%clk 0:02:02]}  Nc6 {[%clk 0:02:57]} 7. Nf3 {[%clk 0:02:02]}  Bf5 {[%clk 0:02:55]} 8. a3 {[%clk 0:01:56]}  e6 {[%clk 0:02:52]} 9. O-O {[%clk 0:01:56]}  Be7 {[%clk 0:02:52]} 10. Re1 {[%clk 0:01:55]}  O-O {[%clk 0:02:50]} 11. Qe2 {[%clk 0:01:51]}  Rc8 {[%clk 0:02:45]} 12. Ba2 {[%clk 0:01:50]}  Nd4 {[%clk 0:02:41]} 13. Nxd4 {[%clk 0:01:49]}  cxd4 {[%clk 0:02:40]} 14. Ne4 {[%clk 0:01:49]}  Qc7 {[%clk 0:02:31]} 15. Bb3 {[%clk 0:01:49]}  a5 {[%clk 0:02:30]} 16. a4 {[%clk 0:01:49]}  Rfd8 {[%clk 0:02:26]} 17. Bd2 {[%clk 0:01:48]}  Nd5 {[%clk 0:02:25]} 18. Ng3 {[%clk 0:01:48]}  Bg6 {[%clk 0:02:21]} 19. Qg4 {[%clk 0:01:46]}  Nb4 {[%clk 0:02:08]} 20. Bxb4 {[%clk 0:01:46]}  Bxb4 {[%clk 0:02:05]} 21. Re2 {[%clk 0:01:45]}  Kh8 {[%clk 0:01:19]} 22. h4 {[%clk 0:01:45]}  h6 {[%clk 0:01:12]} 23. Bxe6 {[%clk 0:01:40]}  fxe6 {[%clk 0:00:50]} 24. Qxg6 {[%clk 0:01:37]}  e5 {[%clk 0:00:35]} 25. Nf5 {[%clk 0:01:33]}  Rf8 {[%clk 0:00:25]} 26. Rxe5 {[%clk 0:01:28]}  Qxe5 {[%clk 0:00:22]} 27. g4 {[%clk 0:01:26]}  Qf6 {[%clk 0:00:17]} 28. Qh5 {[%clk 0:01:26]}  Kg8 {[%clk 0:00:11]} 29. Rf1 {[%clk 0:01:24]}  Rce8 {[%clk 0:00:10]} 30. Ng3 {[%clk 0:01:23]}  Re5 {[%clk 0:00:09]} 31. g5 {[%clk 0:01:21]}  hxg5 {[%clk 0:00:09]} 32. hxg5 {[%clk 0:01:21]}  Rxg5 {[%clk 0:00:09]} 33. Qe2 {[%clk 0:01:20]}  Bd6 {[%clk 0:00:09]} 0-1


[Site "https://www.chess.com"]

[Event "Titled Tuesday Blitz February 21 Early 2023"]
[White "Karas, Marek"]
[Black "parintele_chess"]
[WhiteFideId "14928558"]
[WhiteElo "2227"]
[BlackElo "2249"]
[Result "1-0"]
[Round "03"]
[TimeControl "180+2"]
[Date "2023.02.21"]
[WhiteClock "0:00:39"]
[BlackClock "0:00:03"]

1. e4 {[%clk 0:02:59]}  e5 {[%clk 0:02:59]} 2. Nf3 {[%clk 0:02:58]}  Nc6 {[%clk 0:03:00]} 3. Bc4 {[%clk 0:02:56]}  Nf6 {[%clk 0:03:00]} 4. d3 {[%clk 0:02:56]}  Bc5 {[%clk 0:02:59]} 5. c3 {[%clk 0:02:55]}  d6 {[%clk 0:02:59]} 6. Nbd2 {[%clk 0:02:55]}  h6 {[%clk 0:02:59]} 7. Nf1 {[%clk 0:02:54]}  Bb6 {[%clk 0:02:53]} 8. Ng3 {[%clk 0:02:53]}  O-O {[%clk 0:02:53]} 9. Bb3 {[%clk 0:02:52]}  Re8 {[%clk 0:02:52]} 10. h3 {[%clk 0:02:51]}  Be6 {[%clk 0:02:52]} 11. Bc2 {[%clk 0:02:49]}  d5 {[%clk 0:02:51]} 12. O-O {[%clk 0:02:43]}  dxe4 {[%clk 0:02:49]} 13. dxe4 {[%clk 0:02:21]}  Qxd1 {[%clk 0:02:48]} 14. Rxd1 {[%clk 0:02:22]}  Rad8 {[%clk 0:02:48]} 15. Rxd8 {[%clk 0:02:17]}  Rxd8 {[%clk 0:02:47]} 16. Bd2 {[%clk 0:02:08]}  Na5 {[%clk 0:02:40]} 17. b3 {[%clk 0:02:05]}  Nc6 {[%clk 0:02:32]} 18. Rd1 {[%clk 0:01:59]}  Ba5 {[%clk 0:02:19]} 19. Be1 {[%clk 0:01:48]}  Rxd1 {[%clk 0:02:13]} 20. Bxd1 {[%clk 0:01:49]}  b5 {[%clk 0:02:00]} 21. b4 {[%clk 0:01:49]}  Bb6 {[%clk 0:02:00]} 22. Bb3 {[%clk 0:01:47]}  Bxb3 {[%clk 0:01:59]} 23. axb3 {[%clk 0:01:48]}  a5 {[%clk 0:01:59]} 24. bxa5 {[%clk 0:01:48]}  Nxa5 {[%clk 0:01:59]} 25. Nd2 {[%clk 0:01:43]}  c5 {[%clk 0:01:54]} 26. Kf1 {[%clk 0:01:42]}  Nc6 {[%clk 0:01:29]} 27. f3 {[%clk 0:01:39]}  Ba5 {[%clk 0:01:28]} 28. Nb1 {[%clk 0:01:36]}  b4 {[%clk 0:01:28]} 29. Nf5 {[%clk 0:01:34]}  bxc3 {[%clk 0:01:25]} 30. Bxc3 {[%clk 0:01:35]}  Bxc3 {[%clk 0:01:24]} 31. Nxc3 {[%clk 0:01:35]}  Nd4 {[%clk 0:01:24]} 32. Nxd4 {[%clk 0:01:33]}  exd4 {[%clk 0:01:22]} 33. Nb1 {[%clk 0:01:31]}  Nd7 {[%clk 0:01:13]} 34. Ke2 {[%clk 0:01:27]}  g5 {[%clk 0:01:10]} 35. g3 {[%clk 0:01:22]}  Ne5 {[%clk 0:00:47]} 36. Nd2 {[%clk 0:01:20]}  Kf8 {[%clk 0:00:39]} 37. f4 {[%clk 0:01:15]}  Ng6 {[%clk 0:00:28]} 38. Kf3 {[%clk 0:01:13]}  f6 {[%clk 0:00:20]} 39. Nc4 {[%clk 0:01:09]}  Ke7 {[%clk 0:00:19]} 40. Nb2 {[%clk 0:01:08]}  Kd6 {[%clk 0:00:14]} 41. Nd3 {[%clk 0:01:08]}  gxf4 {[%clk 0:00:07]} 42. gxf4 {[%clk 0:01:08]}  h5 {[%clk 0:00:08]} 43. Ke2 {[%clk 0:01:01]}  Ne7 {[%clk 0:00:06]} 44. Nf2 {[%clk 0:00:54]}  f5 {[%clk 0:00:06]} 45. Kd3 {[%clk 0:00:50]}  fxe4+ {[%clk 0:00:04]} 46. Kxe4 {[%clk 0:00:50]}  Ng6 {[%clk 0:00:04]} 47. Nd3 {[%clk 0:00:49]}  Nh4 {[%clk 0:00:02]} 48. f5 {[%clk 0:00:47]}  Kc6 {[%clk 0:00:02]} 49. f6 {[%clk 0:00:47]}  Ng6 {[%clk 0:00:02]} 50. Kf5 {[%clk 0:00:46]}  Nf8 {[%clk 0:00:03]} 51. Ke5 {[%clk 0:00:42]}  Kb5 {[%clk 0:00:03]} 52. Kd5 {[%clk 0:00:41]}  Nd7 {[%clk 0:00:02]} 53. f7 {[%clk 0:00:41]}  Nb6+ {[%clk 0:00:03]} 54. Kd6 {[%clk 0:00:40]}  Nc8+ {[%clk 0:00:03]} 55. Ke6 {[%clk 0:00:39]} 1-0


[Site "https://www.chess.com"]

[Event "Titled Tuesday Blitz February 21 Early 2023"]
[White "Levitan, Caleb Levi"]
[Black "Ezat, Mohamed"]
[WhiteFideId "14332620"]
[BlackFideId "10600906"]
[WhiteElo "2129"]
[BlackElo "2402"]
[Result "0-1"]
[Round "03"]
[TimeControl "180+2"]
[Date "2023.02.21"]
[WhiteClock "0:00:02"]
[BlackClock "0:00:47"]

1. e4 {[%clk 0:03:00]}  d5 {[%clk 0:02:41]} 2. exd5 {[%clk 0:02:59]}  c6 {[%clk 0:02:40]} 3. dxc6 {[%clk 0:02:53]}  Nxc6 {[%clk 0:02:40]} 4. Nf3 {[%clk 0:02:52]}  e5 {[%clk 0:02:40]} 5. Nc3 {[%clk 0:02:46]}  Bd6 {[%clk 0:02:38]} 6. d3 {[%clk 0:02:42]}  f5 {[%clk 0:02:36]} 7. Bg5 {[%clk 0:02:39]}  Nf6 {[%clk 0:02:35]} 8. Be2 {[%clk 0:02:35]}  h6 {[%clk 0:02:35]} 9. Bxf6 {[%clk 0:02:31]}  Qxf6 {[%clk 0:02:35]} 10. O-O {[%clk 0:02:29]}  O-O {[%clk 0:02:34]} 11. Re1 {[%clk 0:02:26]}  Be6 {[%clk 0:02:33]} 12. Bf1 {[%clk 0:02:21]}  Rad8 {[%clk 0:02:34]} 13. Qe2 {[%clk 0:02:17]}  Rfe8 {[%clk 0:02:32]} 14. Rad1 {[%clk 0:02:12]}  Nd4 {[%clk 0:02:20]} 15. Nxd4 {[%clk 0:01:59]}  exd4 {[%clk 0:02:20]} 16. Nb1 {[%clk 0:01:46]}  Bf7 {[%clk 0:02:11]} 17. Qf3 {[%clk 0:01:42]}  Bxa2 {[%clk 0:02:02]} 18. Nd2 {[%clk 0:01:24]}  Rxe1 {[%clk 0:01:53]} 19. Rxe1 {[%clk 0:01:24]}  Bb4 {[%clk 0:01:54]} 20. Re2 {[%clk 0:01:18]}  Bd5 {[%clk 0:01:53]} 21. Qg3 {[%clk 0:01:01]}  Bd6 {[%clk 0:01:51]} 22. Qh3 {[%clk 0:00:54]}  g5 {[%clk 0:01:40]} 23. f3 {[%clk 0:00:36]}  Bf4 {[%clk 0:01:37]} 24. Nc4 {[%clk 0:00:26]}  b5 {[%clk 0:01:28]} 25. Na3 {[%clk 0:00:26]}  a6 {[%clk 0:01:27]} 26. Nb1 {[%clk 0:00:16]}  Kh8 {[%clk 0:01:25]} 27. c3 {[%clk 0:00:16]}  g4 {[%clk 0:01:24]} 28. Qh5 {[%clk 0:00:12]}  Be3+ {[%clk 0:01:23]} 29. Kh1 {[%clk 0:00:12]}  gxf3 {[%clk 0:01:23]} 30. gxf3 {[%clk 0:00:10]}  Rg8 {[%clk 0:01:24]} 31. Bg2 {[%clk 0:00:10]}  Kh7 {[%clk 0:00:58]} 32. cxd4 {[%clk 0:00:09]}  Rg5 {[%clk 0:00:54]} 33. Qh3 {[%clk 0:00:05]}  Qxd4 {[%clk 0:00:52]} 34. Nc3 {[%clk 0:00:04]}  Qxd3 {[%clk 0:00:47]} 35. Nxd5 {[%clk 0:00:02]}  Qd1+ {[%clk 0:00:47]} 0-1


[Site "https://www.chess.com"]

[Event "Titled Tuesday Blitz February 21 Early 2023"]
[White "Guimaraes, Wagner Peixoto"]
[Black "Kuzmin, Roman"]
[WhiteFideId "2100940"]
[BlackFideId "44134932"]
[WhiteElo "2194"]
[BlackElo "2198"]
[Result "1-0"]
[Round "03"]
[TimeControl "180+2"]
[Date "2023.02.21"]
[WhiteClock "0:00:03"]
[BlackClock "0:00:08"]

1. e4 {[%clk 0:02:17]}  c5 {[%clk 0:02:57]} 2. Nf3 {[%clk 0:02:17]}  d6 {[%clk 0:02:56]} 3. d4 {[%clk 0:02:18]}  cxd4 {[%clk 0:02:57]} 4. Nxd4 {[%clk 0:02:18]}  Nf6 {[%clk 0:02:58]} 5. Nc3 {[%clk 0:02:19]}  a6 {[%clk 0:02:58]} 6. Bg5 {[%clk 0:02:18]}  e6 {[%clk 0:02:58]} 7. f4 {[%clk 0:02:17]}  Qb6 {[%clk 0:02:58]} 8. Nb3 {[%clk 0:01:43]}  h6 {[%clk 0:02:54]} 9. Bxf6 {[%clk 0:01:41]}  gxf6 {[%clk 0:02:55]} 10. Qd3 {[%clk 0:01:40]}  Nc6 {[%clk 0:02:50]} 11. O-O-O {[%clk 0:01:37]}  Bd7 {[%clk 0:02:49]} 12. g3 {[%clk 0:01:33]}  O-O-O {[%clk 0:02:46]} 13. Kb1 {[%clk 0:01:33]}  Be7 {[%clk 0:02:35]} 14. Bg2 {[%clk 0:01:29]}  Kb8 {[%clk 0:02:34]} 15. Rhe1 {[%clk 0:01:28]}  Rc8 {[%clk 0:02:19]} 16. Nd4 {[%clk 0:01:25]}  Nxd4 {[%clk 0:02:06]} 17. Qxd4 {[%clk 0:01:26]}  Qxd4 {[%clk 0:02:06]} 18. Rxd4 {[%clk 0:01:26]}  Bc6 {[%clk 0:01:59]} 19. Bh3 {[%clk 0:01:18]}  b5 {[%clk 0:01:34]} 20. a3 {[%clk 0:01:09]}  h5 {[%clk 0:01:25]} 21. f5 {[%clk 0:00:57]}  Bd7 {[%clk 0:01:21]} 22. fxe6 {[%clk 0:00:43]}  fxe6 {[%clk 0:01:22]} 23. Nd5 {[%clk 0:00:32]}  Bd8 {[%clk 0:01:18]} 24. Nb4 {[%clk 0:00:26]}  Be7 {[%clk 0:00:56]} 25. Nxa6+ {[%clk 0:00:23]}  Kb7 {[%clk 0:00:55]} 26. Nb4 {[%clk 0:00:22]}  Rc7 {[%clk 0:00:41]} 27. Bg2 {[%clk 0:00:21]}  Kb6 {[%clk 0:00:38]} 28. Red1 {[%clk 0:00:19]}  h4 {[%clk 0:00:35]} 29. Rxd6+ {[%clk 0:00:14]}  Bxd6 {[%clk 0:00:36]} 30. Rxd6+ {[%clk 0:00:14]}  Ka7 {[%clk 0:00:36]} 31. Bf3 {[%clk 0:00:10]}  hxg3 {[%clk 0:00:36]} 32. hxg3 {[%clk 0:00:11]}  Bc8 {[%clk 0:00:18]} 33. Nc6+ {[%clk 0:00:09]}  Kb6 {[%clk 0:00:17]} 34. Nb4+ {[%clk 0:00:07]}  Kc5 {[%clk 0:00:15]} 35. Rd3 {[%clk 0:00:07]}  Kb6 {[%clk 0:00:14]} 36. Rd6+ {[%clk 0:00:07]}  Kc5 {[%clk 0:00:13]} 37. Rd3 {[%clk 0:00:07]}  Rh3 {[%clk 0:00:13]} 38. Rc3+ {[%clk 0:00:06]}  Kb6 {[%clk 0:00:13]} 39. Rd3 {[%clk 0:00:05]}  Rxg3 {[%clk 0:00:13]} 40. e5 {[%clk 0:00:04]}  fxe5 {[%clk 0:00:11]} 41. Rd6+ {[%clk 0:00:04]}  Kc5 {[%clk 0:00:12]} 42. Rd3 {[%clk 0:00:03]}  e4 {[%clk 0:00:12]} 43. Bxe4 {[%clk 0:00:03]}  Rxd3 {[%clk 0:00:12]} 44. Bxd3 {[%clk 0:00:03]}  Rh7 {[%clk 0:00:09]} 45. Bxh7 {[%clk 0:00:03]}  e5 {[%clk 0:00:08]} 46. Be4 {[%clk 0:00:03]} 1-0


[Site "https://www.chess.com"]

[Event "Titled Tuesday Blitz February 21 Early 2023"]
[White "Jiganchine, Roman"]
[Black "Malka, Samuel"]
[WhiteFideId "2603667"]
[BlackFideId "20643675"]
[WhiteElo "2205"]
[BlackElo "2165"]
[Result "1/2-1/2"]
[Round "03"]
[TimeControl "180+2"]
[Date "2023.02.21"]
[WhiteClock "0:00:06"]
[BlackClock "0:00:13"]

1. e4 {[%clk 0:02:59]}  e5 {[%clk 0:02:58]} 2. Nf3 {[%clk 0:02:58]}  Nc6 {[%clk 0:02:59]} 3. Nc3 {[%clk 0:02:57]}  Nf6 {[%clk 0:02:59]} 4. Bb5 {[%clk 0:02:56]}  Nd4 {[%clk 0:02:59]} 5. O-O {[%clk 0:02:56]}  Nxb5 {[%clk 0:02:58]} 6. Nxb5 {[%clk 0:02:55]}  c6 {[%clk 0:02:51]} 7. Nc3 {[%clk 0:02:54]}  Qc7 {[%clk 0:02:41]} 8. d4 {[%clk 0:02:51]}  d6 {[%clk 0:02:41]} 9. a4 {[%clk 0:02:50]}  a5 {[%clk 0:02:37]} 10. h3 {[%clk 0:02:49]}  Be7 {[%clk 0:02:36]} 11. d5 {[%clk 0:02:48]}  h6 {[%clk 0:02:29]} 12. Qd3 {[%clk 0:02:47]}  Bd7 {[%clk 0:02:18]} 13. Be3 {[%clk 0:02:35]}  O-O {[%clk 0:02:04]} 14. Rfc1 {[%clk 0:02:14]}  Nh7 {[%clk 0:02:00]} 15. Rd1 {[%clk 0:02:03]}  Kh8 {[%clk 0:01:54]} 16. Nxe5 {[%clk 0:01:53]}  Bc8 {[%clk 0:01:41]} 17. Nc4 {[%clk 0:01:37]}  f5 {[%clk 0:01:30]} 18. Nb6 {[%clk 0:01:21]}  Rb8 {[%clk 0:01:28]} 19. Nxc8 {[%clk 0:00:49]}  Qxc8 {[%clk 0:01:29]} 20. exf5 {[%clk 0:00:28]}  Qxf5 {[%clk 0:01:26]} 21. Qxf5 {[%clk 0:00:27]}  Rxf5 {[%clk 0:01:27]} 22. Rd2 {[%clk 0:00:19]}  Rff8 {[%clk 0:01:13]} 23. Bb6 {[%clk 0:00:17]}  Ra8 {[%clk 0:01:10]} 24. Re1 {[%clk 0:00:17]}  Bg5 {[%clk 0:01:09]} 25. Be3 {[%clk 0:00:16]}  Bf6 {[%clk 0:01:03]} 26. Bd4 {[%clk 0:00:16]}  Bg5 {[%clk 0:01:02]} 27. Be3 {[%clk 0:00:16]}  Bd8 {[%clk 0:00:40]} 28. dxc6 {[%clk 0:00:15]}  bxc6 {[%clk 0:00:41]} 29. Rxd6 {[%clk 0:00:15]}  Nf6 {[%clk 0:00:41]} 30. Rxc6 {[%clk 0:00:15]}  Rb8 {[%clk 0:00:41]} 31. Nb5 {[%clk 0:00:13]}  Be7 {[%clk 0:00:40]} 32. Rd1 {[%clk 0:00:13]}  Rfc8 {[%clk 0:00:33]} 33. Rxc8+ {[%clk 0:00:13]}  Rxc8 {[%clk 0:00:34]} 34. c3 {[%clk 0:00:13]}  Ne4 {[%clk 0:00:33]} 35. Rd4 {[%clk 0:00:12]}  Nc5 {[%clk 0:00:32]} 36. Rc4 {[%clk 0:00:12]}  Rd8 {[%clk 0:00:21]} 37. Bxc5 {[%clk 0:00:11]}  Rd1+ {[%clk 0:00:21]} 38. Kh2 {[%clk 0:00:10]}  Bf6 {[%clk 0:00:22]} 39. Bd4 {[%clk 0:00:09]}  Bg5 {[%clk 0:00:21]} 40. Be3 {[%clk 0:00:09]}  Bf6 {[%clk 0:00:21]} 41. Bd4 {[%clk 0:00:08]}  Bg5 {[%clk 0:00:22]} 42. Be3 {[%clk 0:00:09]}  Bf6 {[%clk 0:00:22]} 43. Nd4 {[%clk 0:00:09]}  Rb1 {[%clk 0:00:21]} 44. b4 {[%clk 0:00:09]}  axb4 {[%clk 0:00:21]} 45. Rxb4 {[%clk 0:00:09]}  Ra1 {[%clk 0:00:22]} 46. Nf5 {[%clk 0:00:08]}  Kh7 {[%clk 0:00:22]} 47. g3 {[%clk 0:00:08]}  Ra2 {[%clk 0:00:20]} 48. Kg2 {[%clk 0:00:08]}  Kg6 {[%clk 0:00:21]} 49. g4 {[%clk 0:00:07]}  Bxc3 {[%clk 0:00:20]} 50. Rc4 {[%clk 0:00:07]}  Bf6 {[%clk 0:00:21]} 51. Ng3 {[%clk 0:00:07]}  Ra3 {[%clk 0:00:21]} 52. Nf5 {[%clk 0:00:07]}  h5 {[%clk 0:00:21]} 53. gxh5+ {[%clk 0:00:06]}  Kxf5 {[%clk 0:00:21]} 54. h6 {[%clk 0:00:05]}  gxh6 {[%clk 0:00:20]} 55. Bxh6 {[%clk 0:00:05]}  Kg6 {[%clk 0:00:20]} 56. Be3 {[%clk 0:00:05]}  Bd8 {[%clk 0:00:19]} 57. Rg4+ {[%clk 0:00:05]}  Kf5 {[%clk 0:00:19]} 58. Rf4+ {[%clk 0:00:06]}  Ke5 {[%clk 0:00:19]} 59. Rg4 {[%clk 0:00:06]}  Ra2 {[%clk 0:00:18]} 60. h4 {[%clk 0:00:05]}  Kf5 {[%clk 0:00:17]} 61. Rg3 {[%clk 0:00:05]}  Bxh4 {[%clk 0:00:17]} 62. Rf3+ {[%clk 0:00:06]}  Ke6 {[%clk 0:00:16]} 63. Rf4 {[%clk 0:00:06]}  Be7 {[%clk 0:00:13]} 64. Re4+ {[%clk 0:00:06]}  Kd7 {[%clk 0:00:13]} 65. Rd4+ {[%clk 0:00:06]}  Ke6 {[%clk 0:00:13]} 66. Re4+ {[%clk 0:00:06]}  Kd7 {[%clk 0:00:13]} 67. Rd4+ {[%clk 0:00:06]}  Ke6 {[%clk 0:00:13]} 68. Re4+ {[%clk 0:00:06]} 1/2-1/2


[Site "https://www.chess.com"]

[Event "Titled Tuesday Blitz February 21 Early 2023"]
[White "MunichMouse"]
[Black "Shuvalov, Evgenij"]
[BlackFideId "4187237"]
[WhiteElo "2296"]
[BlackElo "2038"]
[Result "1-0"]
[Round "03"]
[TimeControl "180+2"]
[Date "2023.02.21"]
[WhiteClock "0:00:49"]
[BlackClock "0:00:17"]

1. d4 {[%clk 0:03:00]}  Nf6 {[%clk 0:02:59]} 2. c4 {[%clk 0:03:01]}  g6 {[%clk 0:02:58]} 3. g3 {[%clk 0:03:01]}  c6 {[%clk 0:02:58]} 4. Bg2 {[%clk 0:03:01]}  d6 {[%clk 0:02:59]} 5. Nf3 {[%clk 0:03:01]}  Bg7 {[%clk 0:02:57]} 6. O-O {[%clk 0:03:02]}  O-O {[%clk 0:02:55]} 7. Nc3 {[%clk 0:03:03]}  Bf5 {[%clk 0:02:53]} 8. h3 {[%clk 0:03:02]}  Ne4 {[%clk 0:02:49]} 9. g4 {[%clk 0:03:01]}  Nxc3 {[%clk 0:02:49]} 10. bxc3 {[%clk 0:03:02]}  Be4 {[%clk 0:02:49]} 11. Ne1 {[%clk 0:02:57]}  Bxg2 {[%clk 0:02:48]} 12. Nxg2 {[%clk 0:02:58]}  c5 {[%clk 0:02:45]} 13. Rb1 {[%clk 0:02:54]}  Qc7 {[%clk 0:02:41]} 14. Bf4 {[%clk 0:02:48]}  Nd7 {[%clk 0:02:37]} 15. Ne3 {[%clk 0:02:46]}  Nb6 {[%clk 0:02:32]} 16. Nd5 {[%clk 0:02:44]}  Nxd5 {[%clk 0:02:32]} 17. cxd5 {[%clk 0:02:45]}  cxd4 {[%clk 0:02:30]} 18. cxd4 {[%clk 0:02:41]}  Rfc8 {[%clk 0:02:24]} 19. e4 {[%clk 0:02:40]}  Rab8 {[%clk 0:02:19]} 20. Qd2 {[%clk 0:02:31]}  Qc3 {[%clk 0:02:14]} 21. Rfd1 {[%clk 0:02:20]}  Qxd2 {[%clk 0:02:08]} 22. Rxd2 {[%clk 0:02:20]}  Rc4 {[%clk 0:02:07]} 23. Be3 {[%clk 0:02:14]}  b6 {[%clk 0:02:04]} 24. Rb3 {[%clk 0:02:07]}  Rbc8 {[%clk 0:02:00]} 25. Ra3 {[%clk 0:02:06]}  R8c7 {[%clk 0:02:00]} 26. Kf1 {[%clk 0:02:04]}  Kf8 {[%clk 0:01:44]} 27. Ke2 {[%clk 0:02:02]}  Ke8 {[%clk 0:01:45]} 28. Kd3 {[%clk 0:01:57]}  Kd7 {[%clk 0:01:43]} 29. Rb2 {[%clk 0:01:55]}  Kc8 {[%clk 0:01:36]} 30. Rab3 {[%clk 0:01:55]}  Kb7 {[%clk 0:01:32]} 31. Ra3 {[%clk 0:01:54]}  Rc8 {[%clk 0:01:22]} 32. Rab3 {[%clk 0:01:51]}  Ra4 {[%clk 0:01:21]} 33. Rb4 {[%clk 0:01:36]}  Ra3+ {[%clk 0:01:17]} 34. R4b3 {[%clk 0:01:35]}  Ra4 {[%clk 0:01:06]} 35. Rb4 {[%clk 0:01:36]}  Rxb4 {[%clk 0:01:03]} 36. Rxb4 {[%clk 0:01:37]}  Ka6 {[%clk 0:01:04]} 37. Ra4+ {[%clk 0:01:34]}  Kb7 {[%clk 0:01:04]} 38. Rb4 {[%clk 0:01:27]}  a5 {[%clk 0:01:01]} 39. Rb1 {[%clk 0:01:23]}  Ka6 {[%clk 0:01:00]} 40. a4 {[%clk 0:01:23]}  Rb8 {[%clk 0:00:55]} 41. Rb5 {[%clk 0:01:22]}  Rc8 {[%clk 0:00:52]} 42. f4 {[%clk 0:01:22]}  Rb8 {[%clk 0:00:48]} 43. e5 {[%clk 0:01:22]}  Rb7 {[%clk 0:00:46]} 44. Ke4 {[%clk 0:01:12]}  Rc7 {[%clk 0:00:44]} 45. Kd3 {[%clk 0:01:13]}  Rc8 {[%clk 0:00:43]} 46. Rb2 {[%clk 0:01:10]}  Rb8 {[%clk 0:00:39]} 47. Ke4 {[%clk 0:01:06]}  b5 {[%clk 0:00:37]} 48. f5 {[%clk 0:01:01]}  b4 {[%clk 0:00:31]} 49. f6 {[%clk 0:00:58]}  exf6 {[%clk 0:00:30]} 50. exd6 {[%clk 0:00:59]}  Rd8 {[%clk 0:00:29]} 51. Bf4 {[%clk 0:00:57]}  Bf8 {[%clk 0:00:29]} 52. Rc2 {[%clk 0:00:57]}  Kb7 {[%clk 0:00:27]} 53. Rc7+ {[%clk 0:00:57]}  Kb8 {[%clk 0:00:27]} 54. d7 {[%clk 0:00:57]}  b3 {[%clk 0:00:19]} 55. Rc8+ {[%clk 0:00:54]}  Kb7 {[%clk 0:00:20]} 56. Rxd8 {[%clk 0:00:52]}  Bb4 {[%clk 0:00:19]} 57. Rb8+ {[%clk 0:00:50]}  Ka6 {[%clk 0:00:17]} 58. d8=Q {[%clk 0:00:49]}  b2 {[%clk 0:00:17]} 59. Qb6# {[%clk 0:00:49]} 1-0


[Site "https://www.chess.com"]